[Event "Early-Titled-Tuesday-Blitz-February-27-2024"]
[Site "Chess.com"]
[Date "2024.02.27"]
[Round "1"]
[White "Rakhmanov_Aleksandr"]
[Black "VitaliyChayka"]
[Result "1/2-1/2"]
[WhiteElo "2874"]
[BlackElo "2501"]
[TimeControl "180+1"]
[EndTime "8:05:36 PST"]
[Termination "Game drawn by agreement"]

1. c4 {[%clk 0:03:00.9]} 1... d6 {[%clk 0:03:00.1]} 2. Nc3 {[%clk 0:02:58.2]}
2... e5 {[%clk 0:03:00.6]} 3. g3 {[%clk 0:02:58.2]} 3... Nf6 {[%clk 0:03:00.3]}
4. Bg2 {[%clk 0:02:58.7]} 4... Be7 {[%clk 0:03:01.1]} 5. d3 {[%clk 0:02:58.9]}
5... O-O {[%clk 0:03:01.8]} 6. e4 {[%clk 0:02:55]} 6... c5 {[%clk 0:03:00.2]} 7.
Nge2 {[%clk 0:02:54.8]} 7... Nc6 {[%clk 0:03:00.8]} 8. O-O {[%clk 0:02:55.3]}
8... Nd4 {[%clk 0:03:01]} 9. h3 {[%clk 0:02:55.2]} 9... Bd7 {[%clk 0:02:56.6]}
10. Kh2 {[%clk 0:02:54]} 10... a6 {[%clk 0:02:53.4]} 11. f4 {[%clk 0:02:53.2]}
11... b5 {[%clk 0:02:52.9]} 12. f5 {[%clk 0:02:52.8]} 12... h6 {[%clk 0:02:44]}
13. g4 {[%clk 0:02:51.7]} 13... Nh7 {[%clk 0:02:43.6]} 14. Ng3 {[%clk
0:02:40.8]} 14... Bg5 {[%clk 0:02:40.3]} 15. Nd5 {[%clk 0:02:39.5]} 15... Nf6
{[%clk 0:02:29]} 16. Bxg5 {[%clk 0:02:35.1]} 16... hxg5 {[%clk 0:02:29.9]} 17.
Nxf6+ {[%clk 0:02:33.3]} 17... Qxf6 {[%clk 0:02:22.2]} 18. Nh5 {[%clk
0:02:32.9]} 18... Qh6 {[%clk 0:02:22.7]} 19. Qd2 {[%clk 0:02:23.8]} 19... f6
{[%clk 0:02:22.5]} 20. Qa5 {[%clk 0:02:15.1]} 20... Be8 {[%clk 0:02:04.6]} 21.
Ng3 {[%clk 0:02:08.6]} 21... Bf7 {[%clk 0:02:04.4]} 22. Rac1 {[%clk 0:01:54]}
22... b4 {[%clk 0:01:59.8]} 23. Qa4 {[%clk 0:01:51.6]} 23... Be8 {[%clk
0:01:57.3]} 24. Qd1 {[%clk 0:01:51.5]} 24... a5 {[%clk 0:01:55.6]} 25. Rh1
{[%clk 0:01:49.5]} 25... a4 {[%clk 0:01:52.4]} 26. Nf1 {[%clk 0:01:47.7]} 26...
a3 {[%clk 0:01:48.5]} 27. b3 {[%clk 0:01:47.3]} 27... Qh4 {[%clk 0:01:47.4]} 28.
Qd2 {[%clk 0:01:23.5]} 28... Kf7 {[%clk 0:01:35.7]} 29. Ne3 {[%clk 0:01:23]}
29... Bc6 {[%clk 0:01:35.2]} 30. Rcf1 {[%clk 0:01:20.4]} 30... Rh8 {[%clk
0:01:33.3]} 31. Qf2 {[%clk 0:01:07.4]} 31... Rh6 {[%clk 0:01:16.1]} 32. Qxh4
{[%clk 0:01:02]} 32... Rxh4 {[%clk 0:01:17]} 33. Rf2 {[%clk 0:01:00.9]} 33...
Rah8 {[%clk 0:01:08.4]} 1/2-1/2

[Event "Early-Titled-Tuesday-Blitz-February-27-2024"]
[Site "Chess.com"]
[Date "2024.02.27"]
[Round "1"]
[White "Brahianzevich"]
[Black "TigrVShlyape"]
[Result "0-1"]
[WhiteElo "2491"]
[BlackElo "2877"]
[TimeControl "180+1"]
[EndTime "8:05:39 PST"]
[Termination "TigrVShlyape won by resignation"]

1. e4 {[%clk 0:02:56]} 1... c5 {[%clk 0:02:59.2]} 2. Nf3 {[%clk 0:02:55.1]} 2...
e6 {[%clk 0:02:59.6]} 3. Nc3 {[%clk 0:02:55.1]} 3... a6 {[%clk 0:02:59.2]} 4.
Be2 {[%clk 0:02:55.4]} 4... b5 {[%clk 0:02:58.3]} 5. O-O {[%clk 0:02:54.2]} 5...
Bb7 {[%clk 0:02:58.8]} 6. d4 {[%clk 0:02:54.5]} 6... cxd4 {[%clk 0:02:55.2]} 7.
Nxd4 {[%clk 0:02:55.4]} 7... Qc7 {[%clk 0:02:50.2]} 8. Bf3 {[%clk 0:02:38]} 8...
Nc6 {[%clk 0:02:41.3]} 9. Nxc6 {[%clk 0:02:33.2]} 9... Bxc6 {[%clk 0:02:36.9]}
10. Re1 {[%clk 0:02:33.2]} 10... Bd6 {[%clk 0:02:27.6]} 11. g3 {[%clk
0:02:26.5]} 11... Ne7 {[%clk 0:02:25.1]} 12. Qe2 {[%clk 0:02:17]} 12... O-O
{[%clk 0:02:21.8]} 13. e5 {[%clk 0:02:16.2]} 13... Bb4 {[%clk 0:02:20.6]} 14.
Bd2 {[%clk 0:02:13.1]} 14... Bxc3 {[%clk 0:02:19.2]} 15. Bxc3 {[%clk 0:02:12.6]}
15... Bxf3 {[%clk 0:02:19.2]} 16. Qxf3 {[%clk 0:02:11.8]} 16... Nd5 {[%clk
0:02:19.7]} 17. Bd4 {[%clk 0:02:07.1]} 17... Qxc2 {[%clk 0:02:18.5]} 18. Rac1
{[%clk 0:01:52.1]} 18... Qg6 {[%clk 0:02:01.5]} 19. Bc5 {[%clk 0:01:50.8]} 19...
Rfc8 {[%clk 0:01:58.6]} 20. Bd6 {[%clk 0:01:50.9]} 20... f6 {[%clk 0:01:52.7]}
21. b3 {[%clk 0:01:44.5]} 21... h5 {[%clk 0:01:43.4]} 22. h4 {[%clk 0:01:35.5]}
22... Qg4 {[%clk 0:01:41.7]} 23. Qxg4 {[%clk 0:01:18.8]} 23... hxg4 {[%clk
0:01:41.5]} 24. Kg2 {[%clk 0:01:08.6]} 24... Kf7 {[%clk 0:01:39.8]} 25. f3
{[%clk 0:00:53.8]} 25... gxf3+ {[%clk 0:01:35.2]} 26. Kxf3 {[%clk 0:00:54.7]}
26... a5 {[%clk 0:01:31.5]} 27. a3 {[%clk 0:00:53.1]} 27... b4 {[%clk
0:01:19.6]} 28. axb4 {[%clk 0:00:50.9]} 28... axb4 {[%clk 0:01:19.2]} 29. Kg4
{[%clk 0:00:45.8]} 29... Rc3 {[%clk 0:01:12.8]} 30. Rxc3 {[%clk 0:00:38.2]}
30... bxc3 {[%clk 0:01:12.5]} 31. b4 {[%clk 0:00:37.1]} 31... Ra4 {[%clk
0:01:12]} 32. Re4 {[%clk 0:00:36.7]} 32... f5+ {[%clk 0:01:11.4]} 0-1

[Event "Early-Titled-Tuesday-Blitz-February-27-2024"]
[Site "Chess.com"]
[Date "2024.02.27"]
[Round "1"]
[White "DrCeltic"]
[Black "larsmandreassen"]
[Result "1-0"]
[WhiteElo "2605"]
[BlackElo "2235"]
[TimeControl "180+1"]
[EndTime "8:05:41 PST"]
[Termination "DrCeltic won by checkmate"]

1. e4 {[%clk 0:02:57.1]} 1... d5 {[%clk 0:02:58.7]} 2. exd5 {[%clk 0:02:57]}
2... Nf6 {[%clk 0:02:59.2]} 3. c4 {[%clk 0:02:57.4]} 3... e6 {[%clk 0:02:59]} 4.
d4 {[%clk 0:02:56.8]} 4... exd5 {[%clk 0:02:58.9]} 5. Nf3 {[%clk 0:02:57.4]}
5... Bb4+ {[%clk 0:02:59.3]} 6. Nc3 {[%clk 0:02:57.4]} 6... O-O {[%clk
0:02:58.3]} 7. Be3 {[%clk 0:02:54.7]} 7... Bg4 {[%clk 0:02:56.8]} 8. Bd3 {[%clk
0:02:52]} 8... Re8 {[%clk 0:02:53.9]} 9. O-O {[%clk 0:02:51.2]} 9... c6 {[%clk
0:02:53.4]} 10. Rc1 {[%clk 0:02:48.5]} 10... Nbd7 {[%clk 0:02:52]} 11. c5 {[%clk
0:02:47.9]} 11... Bxc3 {[%clk 0:02:50.6]} 12. Rxc3 {[%clk 0:02:48]} 12... Ne4
{[%clk 0:02:51.2]} 13. Rc1 {[%clk 0:02:43.9]} 13... f5 {[%clk 0:02:44.9]} 14.
Be2 {[%clk 0:02:37.7]} 14... Qf6 {[%clk 0:02:40.8]} 15. Bf4 {[%clk 0:02:33.1]}
15... g5 {[%clk 0:02:37.7]} 16. Be5 {[%clk 0:02:29.4]} 16... Nxe5 {[%clk
0:02:37.4]} 17. Nxe5 {[%clk 0:02:30.3]} 17... Bxe2 {[%clk 0:02:37.3]} 18. Qxe2
{[%clk 0:02:31.1]} 18... f4 {[%clk 0:02:35.3]} 19. Qg4 {[%clk 0:02:23.4]} 19...
Re7 {[%clk 0:02:26.7]} 20. h4 {[%clk 0:02:17]} 20... Rg7 {[%clk 0:02:24.8]} 21.
h5 {[%clk 0:02:11.8]} 21... Re8 {[%clk 0:02:16.4]} 22. f3 {[%clk 0:02:12]} 22...
Nd2 {[%clk 0:02:15.5]} 23. Rfe1 {[%clk 0:02:11.6]} 23... Rge7 {[%clk 0:02:12]}
24. b3 {[%clk 0:02:08.9]} 24... Rxe5 {[%clk 0:02:02.7]} 25. dxe5 {[%clk
0:02:04]} 25... Rxe5 {[%clk 0:02:03.2]} 26. Red1 {[%clk 0:02:03.9]} 26... Re2
{[%clk 0:02:01.4]} 27. Qc8+ {[%clk 0:01:57.6]} 27... Qf8 {[%clk 0:02:01.1]} 28.
Qxf8+ {[%clk 0:01:40.6]} 28... Kxf8 {[%clk 0:02:02]} 29. Kh1 {[%clk 0:01:41.1]}
29... g4 {[%clk 0:01:54.2]} 30. Rc2 {[%clk 0:01:35.1]} 30... gxf3 {[%clk
0:01:53.3]} 31. Rcxd2 {[%clk 0:01:32]} 31... fxg2+ {[%clk 0:01:39.7]} 32. Kg1
{[%clk 0:01:32.1]} 32... Re5 {[%clk 0:01:00.2]} 33. Rxg2 {[%clk 0:01:30.2]}
33... Rxh5 {[%clk 0:00:58.9]} 34. Rf1 {[%clk 0:01:30.2]} 34... Rf5 {[%clk
0:00:58.4]} 35. Rgf2 {[%clk 0:01:28.8]} 35... Rg5+ {[%clk 0:00:57.5]} 36. Kh1
{[%clk 0:01:27.1]} 36... Rh5+ {[%clk 0:00:57.7]} 37. Kg2 {[%clk 0:01:27.5]}
37... Rg5+ {[%clk 0:00:55.3]} 38. Kf3 {[%clk 0:01:27.6]} 38... Rg3+ {[%clk
0:00:55.3]} 39. Kxf4 {[%clk 0:01:27.3]} 39... Rc3 {[%clk 0:00:56.2]} 40. Ke5+
{[%clk 0:01:27.3]} 40... Ke7 {[%clk 0:00:56.8]} 41. Rf7+ {[%clk 0:01:27.4]}
41... Ke8 {[%clk 0:00:57]} 42. Rf8+ {[%clk 0:01:27.8]} 42... Ke7 {[%clk
0:00:57.6]} 43. R1f7# {[%clk 0:01:28.6]} 1-0

[Event "Early-Titled-Tuesday-Blitz-February-27-2024"]
[Site "Chess.com"]
[Date "2024.02.27"]
[Round "1"]
[White "ImportedItalianMaple"]
[Black "maurovargas01"]
[Result "1-0"]
[WhiteElo "2544"]
[BlackElo "1876"]
[TimeControl "180+1"]
[EndTime "8:05:41 PST"]
[Termination "ImportedItalianMaple won on time"]

1. Nf3 {[%clk 0:03:00.9]} 1... Nc6 {[%clk 0:02:20.7]} 2. d4 {[%clk 0:02:58.3]}
2... d5 {[%clk 0:02:10.5]} 3. g3 {[%clk 0:02:58]} 3... Bg4 {[%clk 0:02:03.8]} 4.
Bg2 {[%clk 0:02:56]} 4... e6 {[%clk 0:02:01.5]} 5. O-O {[%clk 0:02:54.6]} 5...
Bd6 {[%clk 0:01:41.8]} 6. c4 {[%clk 0:02:52.2]} 6... dxc4 {[%clk 0:01:40]} 7.
Qa4 {[%clk 0:02:39.6]} 7... Nf6 {[%clk 0:01:36.6]} 8. Qxc4 {[%clk 0:02:31.2]}
8... O-O {[%clk 0:01:33.6]} 9. Nc3 {[%clk 0:02:30.6]} 9... Ne7 {[%clk
0:01:09.8]} 10. e4 {[%clk 0:02:26.3]} 10... Bxf3 {[%clk 0:00:59.3]} 11. Bxf3
{[%clk 0:02:25.8]} 11... e5 {[%clk 0:00:58.9]} 12. Bg5 {[%clk 0:02:07.5]} 12...
Nd7 {[%clk 0:00:48.4]} 13. Rad1 {[%clk 0:02:02.4]} 13... h6 {[%clk 0:00:46.4]}
14. Be3 {[%clk 0:01:56]} 14... Nb6 {[%clk 0:00:34.2]} 15. Qe2 {[%clk 0:01:54.4]}
15... Nc6 {[%clk 0:00:18.9]} 16. Nb5 {[%clk 0:01:27.3]} 16... exd4 {[%clk
0:00:15.4]} 17. Nxd4 {[%clk 0:01:24.4]} 17... Ne5 {[%clk 0:00:10.2]} 18. Bg2
{[%clk 0:01:23.7]} 18... a6 {[%clk 0:00:09.2]} 19. Nf5 {[%clk 0:01:16.2]} 1-0

[Event "Early-Titled-Tuesday-Blitz-February-27-2024"]
[Site "Chess.com"]
[Date "2024.02.27"]
[Round "1"]
[White "tetrix83"]
[Black "Firouzja2003"]
[Result "0-1"]
[WhiteElo "2536"]
[BlackElo "3089"]
[TimeControl "180+1"]
[EndTime "8:05:42 PST"]
[Termination "Firouzja2003 won by resignation"]

1. Nf3 {[%clk 0:03:00.9]} 1... Nf6 {[%clk 0:02:59.2]} 2. g3 {[%clk 0:03:00.1]}
2... g6 {[%clk 0:02:59.5]} 3. Bg2 {[%clk 0:03:00.5]} 3... Bg7 {[%clk 0:03:00.3]}
4. d4 {[%clk 0:02:59.5]} 4... O-O {[%clk 0:03:01.2]} 5. c4 {[%clk 0:02:58.7]}
5... d6 {[%clk 0:03:02.1]} 6. O-O {[%clk 0:02:58.5]} 6... Nbd7 {[%clk
0:03:02.7]} 7. Nc3 {[%clk 0:02:56.8]} 7... e5 {[%clk 0:03:03.4]} 8. e4 {[%clk
0:02:56.8]} 8... a6 {[%clk 0:03:03.6]} 9. dxe5 {[%clk 0:02:38.6]} 9... dxe5
{[%clk 0:03:02.4]} 10. Qc2 {[%clk 0:02:39.1]} 10... c6 {[%clk 0:02:55.6]} 11.
Rd1 {[%clk 0:02:39.1]} 11... Qe7 {[%clk 0:02:48.4]} 12. h3 {[%clk 0:02:26.5]}
12... b5 {[%clk 0:02:46.9]} 13. Be3 {[%clk 0:02:21.4]} 13... Bb7 {[%clk
0:02:45.1]} 14. cxb5 {[%clk 0:02:15.6]} 14... cxb5 {[%clk 0:02:44.1]} 15. a4
{[%clk 0:02:02]} 15... b4 {[%clk 0:02:43.6]} 16. Nd5 {[%clk 0:02:01.8]} 16...
Nxd5 {[%clk 0:02:39.4]} 17. exd5 {[%clk 0:02:01.9]} 17... Rac8 {[%clk
0:02:24.1]} 18. Qb3 {[%clk 0:01:53.2]} 18... a5 {[%clk 0:02:17.2]} 19. d6 {[%clk
0:01:52.1]} 19... Qd8 {[%clk 0:02:13.4]} 20. Rac1 {[%clk 0:01:50]} 20... Rxc1
{[%clk 0:02:01.5]} 21. Rxc1 {[%clk 0:01:48]} 21... e4 {[%clk 0:02:02.2]} 22. Ng5
{[%clk 0:01:39.2]} 22... Nf6 {[%clk 0:02:02.3]} 23. Rd1 {[%clk 0:01:25.3]} 23...
h6 {[%clk 0:02:00]} 24. d7 {[%clk 0:00:52]} 24... hxg5 {[%clk 0:01:54]} 25. Bc5
{[%clk 0:00:48.5]} 25... Nxd7 {[%clk 0:01:45.4]} 26. Bxf8 {[%clk 0:00:44.4]}
26... Bxf8 {[%clk 0:01:46.3]} 27. Qc4 {[%clk 0:00:38]} 27... Ne5 {[%clk
0:01:42.6]} 28. Rxd8 {[%clk 0:00:31.8]} 28... Nxc4 {[%clk 0:01:42.7]} 29. b3
{[%clk 0:00:32.5]} 29... Nd6 {[%clk 0:01:43.1]} 30. Rd7 {[%clk 0:00:25.2]} 30...
Bd5 {[%clk 0:01:43.1]} 31. Ra7 {[%clk 0:00:24.6]} 31... Bxb3 {[%clk 0:01:43.3]}
32. Rxa5 {[%clk 0:00:25.2]} 32... Bc2 {[%clk 0:01:40.8]} 33. Ra8 {[%clk
0:00:22.7]} 33... b3 {[%clk 0:01:40.9]} 34. Rb8 {[%clk 0:00:22.9]} 34... Nc4
{[%clk 0:01:40.8]} 35. Bf1 {[%clk 0:00:21.2]} 35... b2 {[%clk 0:01:39.9]} 36.
Bxc4 {[%clk 0:00:16.2]} 36... b1=Q+ {[%clk 0:01:40.3]} 37. Rxb1 {[%clk
0:00:15.7]} 37... Bxb1 {[%clk 0:01:41.2]} 0-1

[Event "Early-Titled-Tuesday-Blitz-February-27-2024"]
[Site "Chess.com"]
[Date "2024.02.27"]
[Round "1"]
[White "KhazhatulyAlikhan"]
[Black "AlexTruskavetsky"]
[Result "0-1"]
[WhiteElo "2420"]
[BlackElo "2735"]
[TimeControl "180+1"]
[EndTime "8:05:46 PST"]
[Termination "AlexTruskavetsky won by resignation"]

1. e4 {[%clk 0:03:00.9]} 1... c5 {[%clk 0:02:53.4]} 2. Nf3 {[%clk 0:03:00.4]}
2... Nc6 {[%clk 0:02:53.7]} 3. d4 {[%clk 0:02:57.2]} 3... cxd4 {[%clk
0:02:54.6]} 4. Nxd4 {[%clk 0:02:58.1]} 4... Nf6 {[%clk 0:02:55.1]} 5. Nc3 {[%clk
0:02:46.4]} 5... e6 {[%clk 0:02:54.6]} 6. Ndb5 {[%clk 0:02:35.3]} 6... Bb4
{[%clk 0:02:53.3]} 7. Nd6+ {[%clk 0:01:57.3]} 7... Ke7 {[%clk 0:02:53.4]} 8.
Nxc8+ {[%clk 0:01:57.2]} 8... Rxc8 {[%clk 0:02:51.8]} 9. Bd3 {[%clk 0:01:58.1]}
9... a6 {[%clk 0:02:38.3]} 10. O-O {[%clk 0:01:54.1]} 10... Bc5 {[%clk
0:02:38.2]} 11. Re1 {[%clk 0:01:18.5]} 11... Re8 {[%clk 0:02:33.4]} 12. Bg5
{[%clk 0:00:28]} 12... d6 {[%clk 0:02:32.2]} 13. Qf3 {[%clk 0:00:15.5]} 13... h6
{[%clk 0:02:30.2]} 14. Bxf6+ {[%clk 0:00:14.1]} 14... gxf6 {[%clk 0:02:31.1]}
15. Kh1 {[%clk 0:00:14.8]} 15... Rg8 {[%clk 0:02:30.6]} 16. Qf4 {[%clk
0:00:11.7]} 16... Ne5 {[%clk 0:02:26.9]} 17. f3 {[%clk 0:00:10.9]} 17... b5
{[%clk 0:02:24.9]} 18. a3 {[%clk 0:00:10.4]} 18... Rg6 {[%clk 0:02:23.3]} 19.
Rad1 {[%clk 0:00:10.2]} 19... Qb6 {[%clk 0:02:23.5]} 20. Re2 {[%clk 0:00:09.5]}
20... Rcg8 {[%clk 0:02:23.6]} 21. Qh4 {[%clk 0:00:08.8]} 21... Bd4 {[%clk
0:02:21.6]} 22. Qh3 {[%clk 0:00:06]} 22... R6g7 {[%clk 0:02:18.1]} 23. f4 {[%clk
0:00:05.9]} 23... Ng4 {[%clk 0:02:17.5]} 24. Rde1 {[%clk 0:00:05.1]} 24... Nf2+
{[%clk 0:02:17.4]} 25. Rxf2 {[%clk 0:00:05.7]} 25... Bxf2 {[%clk 0:02:18.3]} 26.
Re2 {[%clk 0:00:06.1]} 26... Bd4 {[%clk 0:02:18.1]} 27. g3 {[%clk 0:00:04.8]}
27... Bxc3 {[%clk 0:02:18.3]} 28. bxc3 {[%clk 0:00:04.8]} 28... Qc5 {[%clk
0:02:18.8]} 29. Qxh6 {[%clk 0:00:03]} 29... Qxa3 {[%clk 0:02:17.3]} 30. Kg2
{[%clk 0:00:03.2]} 30... Qxc3 {[%clk 0:02:17.2]} 31. Kf2 {[%clk 0:00:03.8]}
31... a5 {[%clk 0:02:13.5]} 32. Qh4 {[%clk 0:00:04.2]} 32... Rg4 {[%clk
0:02:08.5]} 33. Qh7 {[%clk 0:00:02.7]} 33... a4 {[%clk 0:02:08.9]} 34. Bxb5
{[%clk 0:00:02.5]} 34... Qc5+ {[%clk 0:02:09.2]} 35. Kf3 {[%clk 0:00:02.8]}
35... Qxb5 {[%clk 0:02:09.8]} 36. e5 {[%clk 0:00:02.7]} 36... fxe5 {[%clk
0:02:04.1]} 37. fxe5 {[%clk 0:00:03.6]} 37... dxe5 {[%clk 0:02:04.3]} 38. Qe4
{[%clk 0:00:03.6]} 38... Rxe4 {[%clk 0:02:04.3]} 39. Rd2 {[%clk 0:00:03]} 0-1

[Event "Early-Titled-Tuesday-Blitz-February-27-2024"]
[Site "Chess.com"]
[Date "2024.02.27"]
[Round "1"]
[White "Shield12"]
[Black "chess_blitz00"]
[Result "1-0"]
[WhiteElo "2977"]
[BlackElo "2520"]
[TimeControl "180+1"]
[EndTime "8:05:47 PST"]
[Termination "Shield12 won on time"]

1. e4 {[%clk 0:03:00.9]} 1... e5 {[%clk 0:03:00.1]} 2. Nf3 {[%clk 0:03:00.6]}
2... Nc6 {[%clk 0:03:00.7]} 3. Bb5 {[%clk 0:03:01.1]} 3... Bc5 {[%clk
0:03:01.2]} 4. c3 {[%clk 0:03:00]} 4... Nf6 {[%clk 0:02:58.9]} 5. d4 {[%clk
0:02:58.9]} 5... exd4 {[%clk 0:02:57.6]} 6. e5 {[%clk 0:02:59.8]} 6... Nd5
{[%clk 0:02:49.5]} 7. O-O {[%clk 0:02:57.5]} 7... O-O {[%clk 0:02:29.3]} 8. cxd4
{[%clk 0:02:55.1]} 8... Be7 {[%clk 0:02:29.9]} 9. Qb3 {[%clk 0:02:51.8]} 9...
Na5 {[%clk 0:02:00.1]} 10. Qxd5 {[%clk 0:02:45.8]} 10... c6 {[%clk 0:02:00.7]}
11. Bxc6 {[%clk 0:02:42.2]} 11... dxc6 {[%clk 0:02:01.6]} 12. Qe4 {[%clk
0:02:41.5]} 12... Be6 {[%clk 0:01:45.2]} 13. Nc3 {[%clk 0:02:37]} 13... Nc4
{[%clk 0:01:38.5]} 14. Rd1 {[%clk 0:02:28.4]} 14... Nb6 {[%clk 0:01:38.4]} 15.
h3 {[%clk 0:02:25.1]} 15... Nd5 {[%clk 0:01:38.9]} 16. Bd2 {[%clk 0:02:22.7]}
16... Nxc3 {[%clk 0:01:38.5]} 17. bxc3 {[%clk 0:02:20.6]} 17... Qd5 {[%clk
0:01:17.3]} 18. Qe2 {[%clk 0:02:15.9]} 18... a5 {[%clk 0:01:03]} 19. Be3 {[%clk
0:02:12.4]} 19... a4 {[%clk 0:00:56.8]} 20. Bg5 {[%clk 0:02:08.1]} 20... Ba3
{[%clk 0:00:32.7]} 21. Qc2 {[%clk 0:02:06.6]} 21... h6 {[%clk 0:00:20.1]} 22.
Be3 {[%clk 0:02:06.1]} 22... Be7 {[%clk 0:00:19]} 23. Nd2 {[%clk 0:02:05.6]}
23... b5 {[%clk 0:00:18.7]} 24. Ne4 {[%clk 0:02:01.8]} 24... Kh8 {[%clk
0:00:12.8]} 25. Ng3 {[%clk 0:01:58.4]} 25... f5 {[%clk 0:00:12.1]} 26. Qd2
{[%clk 0:01:50.8]} 26... Kh7 {[%clk 0:00:10.6]} 27. Nh5 {[%clk 0:01:49.6]} 27...
g6 {[%clk 0:00:09.4]} 28. Nf4 {[%clk 0:01:46.7]} 28... Qe4 {[%clk 0:00:07.9]}
29. Nxe6 {[%clk 0:01:45.7]} 29... Rf7 {[%clk 0:00:05]} 30. f3 {[%clk 0:01:45.8]}
30... Qd5 {[%clk 0:00:05.1]} 31. Nc7 {[%clk 0:01:46.5]} 31... Qd7 {[%clk
0:00:05.5]} 32. Nxa8 {[%clk 0:01:46.9]} 1-0

[Event "Early-Titled-Tuesday-Blitz-February-27-2024"]
[Site "Chess.com"]
[Date "2024.02.27"]
[Round "1"]
[White "szachmistrz2500"]
[Black "TregubovP"]
[Result "1/2-1/2"]
[WhiteElo "2400"]
[BlackElo "2684"]
[TimeControl "180+1"]
[EndTime "8:05:50 PST"]
[Termination "Game drawn by repetition"]

1. d4 {[%clk 0:03:00.9]} 1... Nf6 {[%clk 0:02:59.3]} 2. c4 {[%clk 0:03:00.8]}
2... c5 {[%clk 0:02:59.8]} 3. d5 {[%clk 0:02:59.9]} 3... b5 {[%clk 0:03:00.3]}
4. cxb5 {[%clk 0:02:59.6]} 4... a6 {[%clk 0:03:00.9]} 5. b6 {[%clk 0:03:00]}
5... e6 {[%clk 0:02:59.6]} 6. Nc3 {[%clk 0:02:56.5]} 6... Nxd5 {[%clk
0:02:59.7]} 7. Nxd5 {[%clk 0:02:56.7]} 7... exd5 {[%clk 0:03:00.2]} 8. Qxd5
{[%clk 0:02:57.2]} 8... Nc6 {[%clk 0:03:00.8]} 9. e4 {[%clk 0:02:56.8]} 9... Be7
{[%clk 0:02:59.1]} 10. Bc4 {[%clk 0:02:56.6]} 10... O-O {[%clk 0:02:58.8]} 11.
Nf3 {[%clk 0:02:55.5]} 11... Rb8 {[%clk 0:02:59.1]} 12. O-O {[%clk 0:02:51.2]}
12... Rxb6 {[%clk 0:02:58.1]} 13. b3 {[%clk 0:02:41.9]} 13... d6 {[%clk
0:02:53.2]} 14. Bb2 {[%clk 0:02:39.5]} 14... Be6 {[%clk 0:02:53.7]} 15. Qd3
{[%clk 0:02:38.9]} 15... Bxc4 {[%clk 0:02:42.8]} 16. Qxc4 {[%clk 0:02:39.8]}
16... Bf6 {[%clk 0:02:43.1]} 17. Bxf6 {[%clk 0:02:23.8]} 17... Qxf6 {[%clk
0:02:42.7]} 18. Rad1 {[%clk 0:02:23]} 18... Re8 {[%clk 0:02:31.4]} 19. Rfe1
{[%clk 0:02:21.2]} 19... h6 {[%clk 0:02:20.7]} 20. h3 {[%clk 0:02:20.6]} 20...
a5 {[%clk 0:02:13.4]} 21. Rd2 {[%clk 0:02:14.4]} 21... Ne5 {[%clk 0:02:01.1]}
22. Nxe5 {[%clk 0:02:12.3]} 22... Rxe5 {[%clk 0:02:00.4]} 23. Rd5 {[%clk
0:02:05.8]} 23... Rb4 {[%clk 0:01:44.4]} 24. Qd3 {[%clk 0:02:03.1]} 24... Rxd5
{[%clk 0:01:44.1]} 25. Qxd5 {[%clk 0:02:03.2]} 25... a4 {[%clk 0:01:26.6]} 26.
e5 {[%clk 0:01:52.6]} 26... dxe5 {[%clk 0:01:26.7]} 27. Qxc5 {[%clk 0:01:52.9]}
27... Rd4 {[%clk 0:01:19.6]} 28. Qxe5 {[%clk 0:01:46.8]} 28... Qxe5 {[%clk
0:01:17.4]} 29. Rxe5 {[%clk 0:01:46.7]} 29... Rd1+ {[%clk 0:01:15.5]} 30. Kh2
{[%clk 0:01:44.2]} 30... Rd2 {[%clk 0:01:16]} 31. Re8+ {[%clk 0:01:31.2]} 31...
Kh7 {[%clk 0:01:15.5]} 32. Kg3 {[%clk 0:00:54]} 32... Rxa2 {[%clk 0:01:13.1]}
33. bxa4 {[%clk 0:00:53.1]} 33... Rxa4 {[%clk 0:01:13.5]} 34. Rf8 {[%clk
0:00:52.5]} 34... Kg6 {[%clk 0:01:12.7]} 35. Rb8 {[%clk 0:00:51]} 35... Ra3+
{[%clk 0:01:12.8]} 36. f3 {[%clk 0:00:51.3]} 36... Ra5 {[%clk 0:01:12]} 37. h4
{[%clk 0:00:51.1]} 37... h5 {[%clk 0:01:10.7]} 38. Rb6+ {[%clk 0:00:51.1]} 38...
f6 {[%clk 0:01:10.8]} 39. Rb7 {[%clk 0:00:51.4]} 39... Ra4 {[%clk 0:01:10.7]}
40. Rc7 {[%clk 0:00:51.7]} 40... Rb4 {[%clk 0:01:10.5]} 41. Ra7 {[%clk
0:00:51.6]} 41... Rc4 {[%clk 0:01:10.6]} 42. Rb7 {[%clk 0:00:51.7]} 42... Ra4
{[%clk 0:01:10.7]} 43. Rc7 {[%clk 0:00:51.9]} 43... Rb4 {[%clk 0:01:11.2]} 44.
Ra7 {[%clk 0:00:51.9]} 44... Rc4 {[%clk 0:01:11.8]} 45. Rb7 {[%clk 0:00:52.1]}
45... Ra4 {[%clk 0:01:12.1]} 1/2-1/2

[Event "Early-Titled-Tuesday-Blitz-February-27-2024"]
[Site "Chess.com"]
[Date "2024.02.27"]
[Round "1"]
[White "Binary010"]
[Black "Sjakkerntobi"]
[Result "1-0"]
[WhiteElo "2859"]
[BlackElo "2484"]
[TimeControl "180+1"]
[EndTime "8:05:51 PST"]
[Termination "Binary010 won by resignation"]

1. e4 {[%clk 0:03:00.9]} 1... e6 {[%clk 0:02:59.4]} 2. d4 {[%clk 0:02:58.7]}
2... d5 {[%clk 0:03:00]} 3. Nd2 {[%clk 0:02:58.9]} 3... a6 {[%clk 0:02:59.9]} 4.
Ngf3 {[%clk 0:02:57.9]} 4... Nf6 {[%clk 0:03:00.1]} 5. e5 {[%clk 0:02:56.9]}
5... Nfd7 {[%clk 0:03:00.7]} 6. Bd3 {[%clk 0:02:52.8]} 6... c5 {[%clk
0:03:01.2]} 7. c3 {[%clk 0:02:52.7]} 7... Nc6 {[%clk 0:03:01.7]} 8. O-O {[%clk
0:02:52.6]} 8... g5 {[%clk 0:03:02.4]} 9. Nb1 {[%clk 0:02:19.6]} 9... g4 {[%clk
0:02:59.1]} 10. Ne1 {[%clk 0:02:19.6]} 10... cxd4 {[%clk 0:02:59.2]} 11. cxd4
{[%clk 0:02:19.4]} 11... Nxd4 {[%clk 0:02:59.8]} 12. Qxg4 {[%clk 0:02:19.6]}
12... Nc6 {[%clk 0:02:59.8]} 13. f4 {[%clk 0:02:00.2]} 13... h5 {[%clk
0:02:33.3]} 14. Qe2 {[%clk 0:01:57.6]} 14... Bc5+ {[%clk 0:02:27.5]} 15. Kh1
{[%clk 0:01:52.2]} 15... b6 {[%clk 0:02:21.5]} 16. Nc3 {[%clk 0:01:47.8]} 16...
Bb7 {[%clk 0:02:18.7]} 17. Nf3 {[%clk 0:01:43.9]} 17... Qe7 {[%clk 0:02:14.9]}
18. f5 {[%clk 0:01:33]} 18... O-O-O {[%clk 0:02:11.6]} 19. Bg5 {[%clk
0:01:25.7]} 19... Qe8 {[%clk 0:01:42.1]} 20. fxe6 {[%clk 0:01:21.2]} 20... fxe6
{[%clk 0:01:35.6]} 21. Bxd8 {[%clk 0:01:16.1]} 21... Qxd8 {[%clk 0:01:36.5]} 22.
Bxa6 {[%clk 0:01:11.4]} 22... Nd4 {[%clk 0:01:33.8]} 23. Nxd4 {[%clk 0:00:59.6]}
23... Bxd4 {[%clk 0:01:34.7]} 24. Rac1 {[%clk 0:00:59.4]} 24... Bxe5 {[%clk
0:01:17.4]} 25. Nxd5+ {[%clk 0:00:52.7]} 25... Kb8 {[%clk 0:01:17.6]} 26. Bxb7
{[%clk 0:00:52]} 26... Kxb7 {[%clk 0:01:18.5]} 27. Nb4 {[%clk 0:00:47.7]} 27...
Qa8 {[%clk 0:00:47.5]} 28. Rf7 {[%clk 0:00:41.1]} 28... Rd8 {[%clk 0:00:46.5]}
29. Qxe5 {[%clk 0:00:39.8]} 1-0